Cogmind - Beta 15 *** ADVENTURER MODE // 2025.05.14 @ 11:42:03 Player: Jefffff Result: Destroyed by G-34 Mercenary with Small Laser Performance ------------- Evolutions (0) 0 Regions Visited (2) 400 Robots Destroyed (32) 160 Value Destroyed (539) 539 Prototype IDs (13) 260 Alien Tech Used (0) 0 Bonus (0) 0 TOTAL SCORE: 1359 Bonus ------- None Cogmind --------- Core Integrity 0/250 Matter 248/300 Energy 180/180 System Corruption 0% Temperature Cool (6) Movement Core (1600) Ox31 Location -10/Subcaves Parts ------- > --- POWER (1) -------- Meta Core > --- PROPULSION (2+1) - (None) > --- UTILITY (2+1) ---- Huge Storage Unit Structural Scanner Weapon Shielding (+) > --- WEAPON (2) ------- Subdweller Machine Gun Hammer > --- INVENTORY (25) --- Subdweller Power Source Subdweller Power Source Subdweller Power Source High-capacity Matter Pod (147) Sensor Array Targeting Computer Power Shielding Propulsion Shielding Propulsion Shielding Weapon Shielding Light Armor Plating Medium Laser Medium Laser Small Laser Subdweller Laser Subdweller Beam Cannon Light Assault Rifle Subdweller Machine Gun Datajack Multitool Scrap Shield Fragment (40) Scrap Shield Fragment (40) Peak State ------------ > --- POWER ------------ Meta Core > --- PROPULSION ------- (None) > --- UTILITY ---------- Huge Storage Unit Structural Scanner Weapon Shielding > --- WEAPON ----------- Light Assault Rifle Light Assault Rifle Hammer > --- INVENTORY -------- Subdweller Power Source Subdweller Power Source Subdweller Power Source High-capacity Matter Pod Sensor Array Targeting Computer Power Shielding Propulsion Shielding Propulsion Shielding Weapon Shielding Light Armor Plating Medium Laser Medium Laser Small Laser Subdweller Laser Subdweller Beam Cannon Light Assault Rifle Subdweller Machine Gun Subdweller Machine Gun Datajack Multitool Scrap Shield Fragment Scrap Shield Fragment [Rating: 22] Favorites ----------- Power Meta Core Engine Ion Engine Power Core Meta Core Propulsion Aluminum Leg Leg Aluminum Leg Wheel Wheel Utility Structural Scanner Device Structural Scanner Storage Huge Storage Unit Protection Weapon Shielding Weapon Light Assault Rifle Ballistic Gun Light Assault Rifle Special Weapon Multitool Impact Weapon Hammer Build | -11 -10 -10 ------- Run | Yrd Mat Sub Slots Evolved . | . . . Power . | . . . Propulsion . | . . . Utility . | . . . Weapon . | . . . Parts Attached 30 | 6 13 11 Power 6 | 1 2 3 Engine 4 | 1 1 2 Core 2 | . 1 1 Reactor . | . . . Propulsion 11 | 2 6 3 Treads . | . . . Leg 5 | 2 3 . Wheel 6 | . 3 3 Hover . | . . . Flight . | . . . Utility 5 | 1 3 1 Device 1 | . 1 . Storage 3 | 1 2 . Processor . | . . . Hackware . | . . . Protection 1 | . . 1 Artifact . | . . . Weapon 8 | 2 2 4 Energy Gun . | . . . Energy Cannon . | . . . Ballistic Gun 6 | 2 2 2 Ballistic Cannon . | . . . Launcher . | . . . Special Weapon 1 | . . 1 Impact Weapon 1 | . . 1 Slashing Weapon . | . . . Piercing Weapon . | . . . Special Melee Weapon . | . . . Unidentified Prototypes . | . . . Parts Lost 10 | . 1 9 Power 2 | . . 2 Propulsion 5 | . 1 4 Utility . | . . . Weapon 3 | . . 3 Highest Loss Streak 4 | . 1 4 To Critical Strikes . | . . . Average Backups 17 | 1 10 21 Power 2 | . 1 2 Propulsion . | . . . Utility 7 | . 5 8 Weapon 6 | . 2 8 Tool/Special . | . . . Unused Backups 27 | . 8 19 Power 4 | . . 4 Propulsion 1 | . 1 . Utility 13 | . 5 8 Weapon 7 | . 1 6 Tool/Special 2 | . 1 1 Average Slot Usage (%) 78 | . 98 64 Engine 2 | . 3 2 Core 9 | . 10 9 Leg 9 | . 25 . Wheel 5 | . 1 7 Device 12 | . 13 11 Storage 12 | . 14 11 Ballistic Gun 19 | . 28 14 Impact Weapon 4 | . . 7 Peak Build Rating 22 | 6 10 22 Average Rating 13 | 4 9 16 On Entrance 5 | . 6 10 Naked Turns . | . . . Heaviest Build 90 | 12 88 90 Greatest Support 40 | 20 20 40 Greatest Overweight (x) 29 | 1 29 29 Average Overweight (x) 4 | . 1 8 Largest Inventory Capacity 25 | 8 25 25 Average Capacity 22 | 7 18 25 Most Carried 25 | 2 16 25 Average Carried 18 | 1 10 23 Final Capacity 25 | 8 25 25 Final Carried 22 | 2 16 22 Class Distribution -------------------- 61% | Mutant 38% | Scavenger-Mutant Dominant Class ---------------- Scavenger-Mutant | -10/Materials Mutant | -10/Subcaves Resources | -11 -10 -10 ----------- Run | Yrd Mat Sub Matter Collected 972 | 200 395 377 Remotely . | . . . Salvage Created 957 | . 670 287 Parts 57 | . 42 15 Haulers Intercepted 2 | . 2 . Recyclers Shooed 2 | . 2 . Parts Field Recycled . | . . . Retrieved Matter . | . . . Parts Self-Destructed 5 | . . 5 Prevented . | . . . Kills | -11 -10 -10 ------- Run | Yrd Mat Sub Combat Hostiles Destroyed 19 | . 10 9 Guns 19 | . 10 9 Classes Destroyed 7 | . 6 1 Worker 6 | . 6 . Hauler 2 | . 2 . Recycler 2 | . 2 . Watcher 3 | . 3 . Swarmer 10 | . 6 4 Grunt 5 | . 4 1 Subdweller 4 | . . 4 Best Kill Streak 7 | . 7 3 Combat Bots Only 5 | . 5 3 Max Kills in Single Turn 1 | . 1 1 Gunslinging . | . . . Exploded . | . . . Melee . | . . . Uniques/NPCs Destroyed . | . . . Combat | -11 -10 -10 -------- Run | Yrd Mat Sub Hostile Shots Fired 147 | . 87 60 Missed 40 | . 28 12 Hits 107 | . 59 48 Projectile 107 | . 59 48 Critical Strikes 3 | . 3 . Damage Taken 1250 | . 528 722 Core 253 | . 104 149 Absorbed by Shields . | . . . Redirected to Shielding 22 | . . 22 Ignored by Resistances 334 | . 166 168 Regen/Repaired (Parts) 19 | . 19 . Core Remaining (%) 100 | 100 . . Volleys Fired 115 | . 75 40 Largest 2 | . 2 2 Hottest 40 | . 40 40 Shots Fired 220 | . 150 70 Gun 218 | . 150 68 Cannon . | . . . Launcher . | . . . Special 2 | . . 2 Kinetic 218 | . 150 68 Thermal 2 | . . 2 Explosive . | . . . Electromagnetic . | . . . Robot Hit Streak 31 | . 24 31 Robot Miss Streak 3 | . 3 1 Penetration Max . | . . . Secondary Targets 6 | . 4 2 Max Gunslinging Chain 1 | . 1 1 Shots Hit Robots 173 | . 115 58 Core Hits 69 | . 50 19 Critical Kills 1 | . . 1 Critical Parts Destroyed . | . . . Critical Strikes 1 | . . 1 Destroy 1 | . . 1 Melee Attacks 21 | . . 21 Impact 21 | . . 21 Slashing . | . . . Piercing . | . . . Sneak Attacks . | . . . Combat Hostiles . | . . . Follow-up Attacks . | . . . Damage Inflicted 1490 | . 944 546 Guns 1490 | . 944 546 Cannons . | . . . Explosions . | . . . Melee . | . . . Ramming . | . . . Kinetic 1490 | . 944 546 Thermal . | . . . Explosive . | . . . Electromagnetic . | . . . Impact . | . . . Slashing . | . . . Piercing . | . . . Highest Corruption . | . . . Average Corruption . | . . . Corruption Purged . | . . . Corruption Blocked . | . . . Overload Shots . | . . . Overflow Damage . | . . . Projectiles . | . . . Explosions . | . . . Melee . | . . . Knockbacks . | . . . Impact . | . . . Kinetic . | . . . Secondary . | . . . Self-Inflicted Damage . | . . . Shots . | . . . Rammed . | . . . Targets Rammed . | . . . Kicked . | . . . Crushed . | . . . Highest Temperature 42 | . 42 . Average Temperature 10 | . 10 . Received Heat Transfer 507 | . 363 144 Siege Activations . | . . . Martial Activations . | . . . Shielding Activations . | . . . Robots Disrupted . | . . . Combat Hostiles . | . . . Robots Corrupted . | . . . Combat Hostiles . | . . . Parts Fried . | . . . Impact Corruptions . | . . . Robots Melted . | . . . Combat Hostiles . | . . . Parts Melted . | . . . Heat Transferred . | . . . Parts Sabotaged . | . . . Parts Stolen . | . . . Parts Stripped . | . . . Power Chain Reactions . | . . . Alert | -11 -10 -10 ------- Run | Yrd Mat Sub Maximum Alert Level . | . . . Low Security (%) 100 | 100 100 . Level 1 . | . . . Level 2 . | . . . Level 3 . | . . . Level 4 . | . . . Level 5 . | . . . High Security . | . . . Max Security . | . . . Peak Influence 104 | . 104 . Initial . | . . . Average 12 | . 12 . Influence Increases 482 | . 347 135 Destroy 0b10 Robot/C 300 | . 200 100 Destroy 0b10 Robot/NC 65 | . 65 . Destroy Leader 70 | . 50 20 Successful Hack 32 | . 32 . Lose Combat Pursuer 15 | . . 15 Influence Decreases 452 | . 347 105 Time Decay 432 | . 337 95 Lost Part 20 | . 10 10 Squads Dispatched . | . . . Investigation . | . . . Extermination . | . . . Reinforcement . | . . . Assault . | . . . Garrison . | . . . Intercept . | . . . Searches Triggered . | . . . Construction Impeded . | . . . Haulers Reinforced . | . . . Active Scanning Responses . | . . . Cargo Convoy Interrupts . | . . . Stealth | -11 -10 -10 --------- Run | Yrd Mat Sub Distress Signals . | . . . Communications Jammed . | . . . Distress Signals . | . . . Times Spotted 25 | . 15 10 Peak Tracking Total 6 | . 6 3 Tactical Retreats 1 | . . 1 Traps | -11 -10 -10 ------- Run | Yrd Mat Sub Traps Triggered 5 | . 1 4 Indirectly . | . . . Trap Hack Attempts . | . . . Triggered . | . . . Disarmed . | . . . Reprogrammed . | . . . Reused . | . . . Traps Extracted . | . . . Installed . | . . . Triggered . | . . . Machines | -11 -10 -10 ---------- Run | Yrd Mat Sub Machines Disabled 1 | . . 1 Max in Single Turn 1 | . . 1 Machines Repaired . | . . . Machines Dismantled . | . . . Machines Sabotaged . | . . . Overloaded Fab Kills . | . . . Hacking | -11 -10 -10 --------- Run | Yrd Mat Sub Machines Accessed 9 | . 8 1 Terminals 7 | . 7 . Fabricators . | . . . Repair Stations 1 | . 1 . Recycling Units . | . . . Scanalyzers . | . . . Garrison Access . | . . . Total Hacks 40 | . 31 9 Successful 30 | . 21 9 Failed 9 | . 9 . Catastrophic . | . . . Database Lockouts 1 | . 1 . Manual 23 | . 23 . Terminals 27 | . 27 . Fabricators . | . . . Repair Stations 4 | . 4 . Recycling Units . | . . . Scanalyzers . | . . . Garrison Access . | . . . Terminal Hacks 22 | . 13 9 Record 10 | . 2 8 Part Schematic 1 | . 1 . Robot Analysis 4 | . 4 . Prototype ID Bank 1 | . 1 . Emergency Access Points 1 | . 1 . Terminal Index 1 | . 1 . Repair Station Index 1 | . 1 . Scanalyzer Index 1 | . 1 . Unreport Threat 1 | . 1 . Proto ID Catalog 1 | . . 1 Fabricator Hacks . | . . . Repair Station Hacks 2 | . 2 . Scan Component 1 | . 1 . Repair 1 | . 1 . Recycling Unit Hacks . | . . . Scanalyzer . | . . . Garrison Access Hacks . | . . . Unauthorized Hacks 6 | . 6 . Terminals 6 | . 6 . Botnet 6 | . 6 . Fabricators . | . . . Repair Stations . | . . . Recycling Units . | . . . Scanalyzers . | . . . Garrison Access . | . . . Data Cores Recovered . | . . . Used . | . . . Hacking Detections 7 | . 7 . Full Trace Events . | . . . Feedback Events . | . . . Feedback Blocked . | . . . Robot Schematics Acquired . | . . . Robots Built . | . . . Authchips . | . . . Time . | . . . Total Robot Build Rating . | . . . Part Schematics Acquired 1 | . 1 . Parts Built . | . . . Authchips . | . . . Time . | . . . Total Part Build Rating . | . . . Parts Repaired 1 | . 1 . Time 19 | . 19 . Parts Recycled . | . . . Recycled Matter . | . . . Retrieved Matter . | . . . Retrieved Components . | . . . Parts Scanalyzed . | . . . Part Schematics Acquired . | . . . Parts Damaged . | . . . Bothacking | -11 -10 -10 ------------ Run | Yrd Mat Sub Used RIF Installer . | . . . Robots Hacked . | . . . Non-combat . | . . . Combat . | . . . Robot Hacks Applied . | . . . Relay Couplers Released . | . . . Fabnet Peak Effective % . | . . . Robots Rewired . | . . . Allies Hacked . | . . . Hacks Repelled . | . . . Allies | -11 -10 -10 -------- Run | Yrd Mat Sub Total Allies . | . . . Largest Group . | . . . Highest-Rated Group . | . . . Highest-Rated Ally . | . . . Total Orders . | . . . Ally Attacks . | . . . Total Damage . | . . . Kills . | . . . Allies Corrupted . | . . . Allies Melted . | . . . Intel | -11 -10 -10 ------- Run | Yrd Mat Sub Active Infowar (turns) 4533 | . 1736 2797 Structural 4533 | . 1736 2797 Robot Analysis Total 4 | . 4 . Derelict Logs Recovered 3 | . . 3 Drone Launches . | . . . Drone Recoveries . | . . . Exploration | -11 -10 -10 ------------- Run | Yrd Mat Sub Turns Passed 4645 | 68 1780 2797 Spaces Moved 1408 | 50 781 577 Core 137 | 8 1 128 Treads . | . . . Legs 744 | 42 702 . Wheels 527 | . 78 449 Hover . | . . . Flight . | . . . Fastest Speed 50 | 50 120 129 Average Speed 291 | 114 193 439 Slowest Speed 1500 | 120 1500 1500 Overloaded Moves . | . . . Propulsion Burnouts . | . . . Robots Hopped . | . . . Potential Cave-ins . | . . . Cave-ins Triggered . | . . . Exploration Rate (%) 54 | 4 97 61 Regions Visited 2 Branch Regions 1 Pre-discovered Areas 3 | . . 3 Known Exits Taken . | . . . Unknown Exits Taken 2 | 1 1 . Scrap Searched 3 | . . 3 Spaces Dug 1 | . . 1 Terrain Destroyed 1 | . . 1 Melee 1 | . . 1 Projectile . | . . . AOE . | . . . Terrain Rammed . | . . . Walls Destroyed . | . . . Machines Disabled . | . . . Actions | -11 -10 -10 --------- Run | Yrd Mat Sub Total 1726 | 57 934 735 Wait 74 | . 19 55 Move 1406 | 49 780 577 Hop . | . . . Pick Up 41 | 2 23 16 Fast Attach 11 | 6 4 1 Attach 11 | . 2 9 Detach . | . . . Swap 26 | . 13 13 Drop 21 | . 18 3 Fire 115 | . 75 40 Melee 21 | . . 21 Ram . | . . . Kick . | . . . Crush . | . . . Escape Stasis . | . . . Rewire . | . . . Trap . | . . . Miscellaneous . | . . . Route ------- -11/Scrapyard -10/Materials (discovered 5 exits: [*Mat x3] / [*Min] / *Sub) -10/Subcaves History --------- Turn | Location | Event 9 | -11/Scrapyard | Discovered new exit (range 15) 69 | -11/Scrapyard | Entered Materials 303 | -10/Materials | Build established: Mutant 318 | -10/Materials | Central database locked down 356 | -10/Materials | Discovered new exit (range 13) 488 | -10/Materials | Discovered new exit (range 10) 548 | -10/Materials | Discovered new exit (range 13) 794 | -10/Materials | Build established: Scavenger-Mutant 820 | -10/Materials | Repaired Lgt. Nuclear Core 861 | -10/Materials | Discovered new exit (range 15) 1044 | -10/Materials | Discovered new exit (range 7) 1849 | -10/Materials | Entered Subcaves 1849 | -10/Subcaves | Learned location of Zion (-6) 1868 | -10/Subcaves | A swath of the cavern ceiling suddenly collapsed 1911 | -10/Subcaves | Core integrity fell below 50% 2070 | -10/Subcaves | Shifting Twisted Machinery released Sub. Machine Gun 2074 | -10/Subcaves | Shifting Twisted Machinery released Sub. Power Source 2229 | -10/Subcaves | Shifting Twisted Machinery released Sub. Beam Cannon 2347 | -10/Subcaves | Core integrity fell below 20% 2354 | -10/Subcaves | Lost 4 parts (1p3n) 2604 | -10/Subcaves | Build established: Mutant 2628 | -10/Subcaves | Visited 4L-MR0's lab 2776 | -10/Subcaves | Found Meta Core 2778 | -10/Subcaves | Attached Meta Core, gained temporary slots: Propulsion, Utility, Weapon 4646 | -10/Subcaves | Destroyed by G-34 Mercenary with Small Laser Last Messages --------------- 02896_ Subatomizers dissect the Sub. Power Source, destroying it. 03243_ Searching scrap... 03243_ Found Sub. Power Source. 03243_ Found 57 Matter. 03244_ Acquired 57 matter. 03251_ Subatomizers dissect the Sub. Power Source. 03273_ Dropped Sub. Power Source. 03273_ Acquired Sub. Power Source. 03289_ Subatomizers dissect the Sub. Power Source. 04608_ Acquired 57 matter. 04611_ 72-E5S(u) cries out in pain. 04611_ 72-E5S(u) destroyed. 04614_ Subatomizers dissect the Wheel. 04631_ Lgt. Assault Rifle destroyed. 04634_ Temporary Weapon slot lost. 04639_ Subatomizers dissect the Wheel. 04645_ G-47 Trooper destroyed. Map ----- +----------------------------------------------------+ | ?????????????????????????### #### | | ??????????????????????????## #### ### | | ??????????????????????????## ###### | | ??????????????????????????## ####### | | ??????????????????????????## ##### ###??#### | | ??????????????????????????######### ###???### | | ????????????#######???????####### # #####??## | | ??????????#########?????###### #####?## ## | | ?????????####""""##????###### ## ###?## ### | | ?????????###"""""###??#### ### ##?####### | | ?????????## """""###??### ##### ######## | | ?????????## " "###?## # # ### ######## | | ?????????## ######### #### ### ## | | ?????????## ######## ## | | ????????### ""##### | | ?????###### " #### | | ########## "" ### ## | | ####### #### ### ### | | "#### ### ## #######"" | | ####"""""" # ### ## ###?## " | | ""##""""# #### ### ######"" | | ###### #### ######## ### #####" | | #######" "#### ######## """### ###"#" | | #####?##"" #### ######## ##"#### "" " " | | ###???## "#### ##### ######## """ ""#"## | | ###??? " ""# #;@ ######## """ ""#### | | ##?## " " "" ##???### "" "#### | | ?## " ###?#### "####?# | | ## ###" ### ########?#### #####?? | | ###### ##??? ## % #######??##"" ###???? | | #########???? # g ###???## " ###???? | | ????? ###????## ##??### ####??? | | ?????????????### ##??### " "###??? | | ?????????????### = ##??##""" "### # | | ??????????????## %= ###??##### """ ##### | | ?????????????? * ######??### # """ | | ????????????? #####????### """ | | ???????????? ##???????## # # | | ??????????? ###???????## ## ###### | | ?????????? ###???????## ### ##### | | ?????????? ### #????????### ### ##???? | | ????????? ### ##???????### ### #???? | | ?????????? ?# ##???????? ?# #???? | | ??????????? ## ??? ##??????? # # ## ##???? | | ???????????#### ??? ###??????? ###### #???? | | ???????????????????### ???????????####### ?????? | | ???????????????????### ????????????????## ?????? | | ???????????????????????????????????????### ?????? | | ???????????????????????????????????????#### ????? | | ????????????????????????????????????????#####????? | +----------------------------------------------------+ Best States ------------- Heat Dissipation 25 Energy Generation 17 Energy Capacity 250 Matter Stores 300 Matter Capacity 300 Sight Range 16 Terrain Scan Density 10 Resistance: KI 20 Resistance: TH 20 Resistance: EX 20 Resistance: EM 20 Resistance: I 20 Resistance: S 20 Resistance: P 20 Weapon Shielding 33 Evasion (%) 55 Offensive Hacking 10 Item Schematics ----------------- Seismic Detector | -10/Materials | Hacked Robot Schematics ------------------ None Fabricated ------------ Nothing Repaired ---------- Lgt. Nuclear Core | 62% | -10/Materials Alien Tech Used ----------------- None Achievements -------------- None Challenges ------------ None Game ------ Seed CombatMagneticRedirector Manual? 0 Play Time 00:18:02 Cumulative 247.7 hours Start 2025.05.14 @ 11:23:57 End 2025.05.14 @ 11:42:03 Sessions 1 Manual Loads 0 Difficulty Adventurer Special Mode None Game No. 280 Rogue 0 Adventurer 280 Explorer 0 Win Type - Total 0 Types 0/0/0/0/0/0/0/0/0/0 Lore% 72 Gallery% 59 Achievement% 49 Wizard Run 0 Options --------- Layout 2 ASCII 0 Keyboard 0 Movement Mouse Keybinds 0 Fullscreen 2 Font 48/Smallcaps Map View 50x44 Zoom Use 0% Tactical HUD 1 Map Filters NONE Filters NONE Steam 1 RUN: 665d7c0c-5fbc-48cd-995a-925b782829ce